fUSD/lending_fUSD_20240515
["ID","MTS","AMOUNT","RATE_DAILY","PERIOD"]
[327073050,1715779847990,-691.13,0.00011926,2]
[327073052,1715779847999,-691.13,0.00011926,2]
[327073054,1715779848009,-691.13,0.00011926,2]
[327073056,1715779848019,-672.8,0.00011926,2]
[327073058,1715779848028,-691.23,0.00011926,2]
[327073060,1715779848038,-672.8,0.00011926,2]
[327073062,1715779848047,-672.8,0.00011926,2]
[327073064,1715779848056,-672.8,0.00011926,2]
[327073066,1715779848066,-672.8,0.00011926,2]
[327073068,1715779848075,-672.8,0.00011926,2]
[327073070,1715779848085,-672.8,0.00011926,2]
[327073072,1715779848093,-672.8,0.00011926,2]
[327073074,1715779848103,-672.8,0.00011926,2]
[327073076,1715779848112,-672.99,0.00011926,2]
[327073078,1715779848122,-1363.37,0.00011926,2]
[327073080,1715779848131,-1363.37,0.00011926,2]
[327073082,1715779848142,-3498.72,0.00011926,2]
[327073083,1715779848151,-1363.37,0.00011926,2]
[327073086,1715779848162,-3498.72,0.00011926,2]
[327073087,1715779848172,-1363.37,0.00011926,2]
[327073089,1715779848183,-3498.72,0.00011926,2]
[327073091,1715779848197,-1363.37,0.00011926,2]
[327073093,1715779848207,-3498.72,0.00011926,2]
[327073095,1715779848216,-1363.37,0.00011926,2]
[327073097,1715779848227,-3498.72,0.00011926,2]
[327073100,1715779848236,-1363.37,0.00011926,2]
[327073102,1715779848246,-1363.37,0.00011926,2]
[327073104,1715779848255,-3498.72,0.00011926,2]
[327073106,1715779848266,-1363.37,0.00011926,2]
[327073108,1715779848276,-3498.72,0.00011926,2]
[327073110,1715779848285,-3498.72,0.00011926,2]
[327073112,1715779848294,-1363.39,0.00011926,2]
[327073114,1715779848304,-3498.72,0.00011926,2]
[327073116,1715779848313,-3498.72,0.00011926,2]
[327073118,1715779848322,-3498.72,0.00011926,2]
[327073120,1715779848331,-3498.72,0.00011926,2]
[327073122,1715779848340,-3498.72,0.00011926,2]
[327073124,1715779848349,-3498.94962856,0.00011926,2]
[327073126,1715779848358,-500.0,0.00011926,2]
[327073127,1715779848367,-412.50189589,0.00011926,2]
[327073129,1715779848377,-500.0,0.00011926,2]
[327073132,1715779848386,-500.0,0.00011926,2]
[327073133,1715779848395,-151.91616707,0.00011926,2]
[327073136,1715779848405,-876.73,0.00011926,2]
[327073137,1715779848414,-876.73,0.00011926,2]
[327073140,1715779848423,-876.73,0.00011926,2]
[327073142,1715779848433,-876.73,0.00011926,2]
[327073143,1715779848447,-876.73,0.00011926,2]
[327073145,1715779848457,-876.73,0.00011926,2]
[327073147,1715779848466,-876.73,0.00011926,2]
[327073149,1715779848475,-876.73,0.00011926,2]
[327073152,1715779848485,-876.73,0.00011926,2]
[327073154,1715779848495,-876.87732631,0.00011926,2]
[327073156,1715779848504,-504.76,0.00011926,2]
[327073158,1715779848513,-504.76,0.00011926,2]
[327073160,1715779848522,-504.76,0.00011926,2]
[327073162,1715779848531,-504.76,0.00011926,2]
[327073164,1715779848540,-504.76,0.00011926,2]
[327073166,1715779848549,-504.76,0.00011926,2]
[327073168,1715779848558,-504.76,0.00011926,2]
[327073170,1715779848568,-504.76,0.00011926,2]
[327073187,1715779848721,-504.76,0.00011926,2]
[327073189,1715779848732,-504.76,0.00011926,2]
[327073191,1715779848742,-504.76,0.00011926,2]
[327073193,1715779848751,-504.76,0.00011926,2]
[327073195,1715779848760,-504.76,0.00011926,2]
[327073197,1715779848771,-504.81443313,0.00011926,2]
[327073199,1715779848780,-1097.5,0.00011926,2]
[327073201,1715779848797,-1097.5,0.00011926,2]
[327073203,1715779848806,-1097.5,0.00011926,2]
[327073205,1715779848816,-1097.5,0.00011926,2]
[327073207,1715779848826,-1097.5,0.00011926,2]
[327073209,1715779848836,-1097.5,0.00011926,2]
[327073211,1715779848846,-1097.5,0.00011926,2]
[327073213,1715779848855,-1097.5,0.00011926,2]
[327073215,1715779848864,-1097.5,0.00011926,2]
[327073217,1715779848877,-1097.73,0.00011926,2]
[327073220,1715779848887,-1881232.02591424,0.00011927,2]
[327073222,1715779848902,-1906.93647508,0.00011927,2]
[327073224,1715779848913,-589.56767004,0.00011927,2]
[327073226,1715779848924,-399.31545818,0.00011927,2]
[327073229,1715779848935,-461.15715,0.00011927,2]
[327073231,1715779848951,-1013.8937897,0.00011927,2]
[327073233,1715779848962,-2997.220906,0.00011927,2]
[327073235,1715779848973,-29028.315582,0.00011927,2]
[327073237,1715779848985,-46308.28623178,0.00011927,2]
[327073240,1715779848995,-8602.07963177,0.00011927,2]
[327073242,1715779849006,-1213.51831246,0.00011927,2]
[327073244,1715779849018,-8718.88764493,0.00011927,2]
[327073253,1715779849224,-9703.64474437,0.00011927,2]
[327073254,1715779849235,-8643.67207993,0.00011927,2]
[327073255,1715779849246,-837.04713208,0.00011927,2]
[327073257,1715779849257,-441.03499999,0.00011927,2]
[327073259,1715779849269,-552.05707743,0.00011927,2]
[327073261,1715779849281,-724.36043818,0.00011927,2]
[327073263,1715779849292,-324.43169441,0.00011927,2]
[327073265,1715779849303,-3250.0,0.00011927,2]
[327073268,1715779849314,-15977.328,0.00011927,2]
[327073282,1715779849447,-291.15622066,0.00011878,2]
[327073284,1715779849456,-11.72833934,0.00011898,2]
[327073292,1715779849523,-455.69077107,0.00011878,2]
[327073294,1715779849534,-252.35051949,0.00011878,2]
[327073296,1715779849545,-2390.34952551,0.00011878,2]
[327073298,1715779849555,-491.77751684,0.00011898,2]
[327073317,1715779849728,-150.0,0.00011727,2]
[327073320,1715779849737,-150.0,0.00011764,2]
[327073322,1715779849747,-150.0,0.00011784,2]
[327073323,1715779849756,-150.0,0.00011816,2]
[327073326,1715779849765,-150.0,0.00011835,2]
[327073328,1715779849774,-150.0,0.00011842,2]
[327073330,1715779849783,-150.0,0.00011865,2]
[327073331,1715779849798,-150.0,0.00011871,2]
[327073333,1715779849808,-150.0,0.00011876,2]
[327073335,1715779849817,-150.0,0.00011886,2]
[327073337,1715779849826,-150.0,0.00011892,2]
[327073340,1715779849835,-82235.81638547,0.00011898,2]
[327073341,1715779849846,-784.69,0.00011899,2]
[327073343,1715779849856,-784.69,0.00011899,2]
[327073345,1715779849865,-784.69,0.00011899,2]
[327073347,1715779849873,-784.88272406,0.00011899,2]
[327073349,1715779849882,-150.0,0.00011916,2]
[327073351,1715779849894,-150.0,0.00011916,2]
[327073353,1715779849903,-121653.50507456,0.00011927,2]
[327073356,1715779849915,-2072.94766162,0.00011927,2]
[327073358,1715779849926,-10000.0,0.00011927,2]
[327073360,1715779849936,-371.88291753,0.00011927,2]
[327073362,1715779849949,-1324.8,0.00011927,2]
[327073364,1715779849960,-3219.2201036,0.00011927,2]
[327073366,1715779849971,-719.84129831,0.00011927,2]
[327073369,1715779849982,-6561.23247747,0.00011927,2]
[327073371,1715779849993,-12593.9,0.00011927,2]
[327073379,1715779850062,-150.0,0.00011741,2]
[327073381,1715779850072,-150.0,0.00011778,2]
[327073383,1715779850082,-150.0,0.00011849,2]
[327073385,1715779850091,-150.0,0.00011858,2]
[327073387,1715779850101,-150.0,0.00011908,2]
[327073390,1715779850111,-63049.97439995,0.00011927,2]
[327073392,1715779850122,-2272.4580748,0.00011927,2]
[327073394,1715779850134,-454.68489641,0.00011927,2]
[327073396,1715779850145,-516.2379924,0.00011927,2]
[327073398,1715779850156,-319.50316463,0.00011927,2]
[327073401,1715779850169,-253.7500245,0.00011927,2]
[327073409,1715779850237,1239.70446,7.821e-05,2]
[327073585,1715779967605,182.48,8.219e-05,2]
[327073586,1715779972047,151.0,0.00020469,120]
[327073595,1715780225716,-643.1326905,8.79e-05,2]
[327073596,1715780225743,-165.8,8.792e-05,2]
[327073597,1715780226343,151.0,0.00020469,120]
[327073643,1715780717344,151.0,0.00020469,120]
[327073720,1715781032828,-643.1326905,8.57e-05,2]
[327073721,1715781032838,-939.02688406,8.571e-05,2]
[327073722,1715781032850,-1500.0,8.573e-05,2]
[327073723,1715781032861,-285.3,8.575e-05,2]
[327073724,1715781032872,-157.51,8.585e-05,2]
[327073725,1715781032883,-158.05181906,8.789e-05,2]
[327073726,1715781032894,-3140.82702736,9.813e-05,2]
[327073727,1715781032908,-152.25813864,9.813e-05,2]
[327073728,1715781032918,-150.0,9.863e-05,2]
[327073729,1715781032929,-453.77996837,9.897e-05,2]
[327073730,1715781032942,-42838.49805351,9.897e-05,2]
[327073731,1715781032961,-4219.06375905,9.898e-05,2]
[327073732,1715781032982,-150.0,9.898e-05,2]
[327073733,1715781032993,-16375.9551,9.9e-05,2]
[327073734,1715781033005,-384.0,9.995e-05,2]
[327073735,1715781033018,-409.50018805,0.0001,2]
[327073736,1715781033031,-13193.59270938,0.0001,2]
[327073737,1715781033043,-23900.0,0.00010119,2]
[327073738,1715781033055,-191.81,0.00010411,2]
[327073739,1715781033067,-1318.21,0.00010438,2]
[327073740,1715781033078,-243.18,0.00010463,2]
[327073742,1715781033091,-243.18,0.00010491,2]
[327073743,1715781033107,-1500.0,0.00010514,2]
[327073744,1715781033118,-243.18,0.0001052,2]
[327073745,1715781033130,-250.0,0.00010521,2]
[327073746,1715781033142,-243.18,0.00010549,2]
[327073747,1715781033156,-616.0,0.00010567,2]
[327073748,1715781033168,-243.18,0.00010577,2]
[327073749,1715781033180,-243.18,0.00010606,2]
[327073750,1715781033192,-167.03,0.00010615,2]
[327073751,1715781033204,-243.18,0.00010635,2]
[327073752,1715781033216,-243.18,0.00010663,2]
[327073753,1715781033230,-243.18,0.00010692,2]
[327073754,1715781033243,-243.18,0.00010721,2]
[327073755,1715781033254,-243.18,0.00010749,2]
[327073756,1715781033266,-243.18,0.00010778,2]
[327073757,1715781033277,-243.18,0.00010807,2]
[327073758,1715781033288,-243.18,0.00010835,2]
[327073759,1715781033300,-157.51,0.00010849,2]
[327073760,1715781033311,-243.18,0.00010864,2]
[327073761,1715781033323,-210.0,0.00010888,2]
[327073762,1715781033335,-243.18,0.00010893,2]
[327073763,1715781033347,-243.18,0.00010921,2]
[327073764,1715781033363,-243.18,0.0001095,2]
[327073765,1715781033374,-1293.45,0.00010959,2]
[327073766,1715781033385,-243.18,0.00010979,2]
[327073767,1715781033396,-243.18,0.00011008,2]
[327073768,1715781033408,-39851.94443044,0.0001118,2]
[327073769,1715781033419,-300.0,0.000112,4]
[327073770,1715781033430,-384.0,0.00011244,2]
[327073771,1715781033442,-600.0,0.000113,4]
[327073772,1715781033453,-900.0,0.000114,4]
[327073773,1715781033464,-1200.0,0.000115,4]
[327073774,1715781033476,-1600.0,0.000116,4]
[327073775,1715781033487,-1563.85586632,0.00011665,2]
[327073776,1715781033498,-645.5673,0.00011678,2]
[327073777,1715781033512,-188.63686278,0.0001168,2]
[327073778,1715781033526,-300.0,0.000117,4]
[327073779,1715781033550,-150.0,0.00011729,2]
[327073780,1715781033569,-150.0,0.0001173,2]
[327073781,1715781033580,-150.0,0.0001173,2]
[327073782,1715781033591,-150.0,0.00011733,2]
[327073783,1715781033604,-150.0,0.0001174,2]
[327073784,1715781033614,-150.0,0.00011742,2]
[327073785,1715781033625,-150.0,0.00011743,2]
[327073786,1715781033636,-150.0,0.00011744,2]
[327073787,1715781033647,-150.0,0.00011745,2]
[327073788,1715781033658,-150.0,0.00011749,2]
[327073789,1715781033669,-150.0,0.00011756,2]
[327073790,1715781033679,-300.0,0.00011756,2]
[327073791,1715781033690,-150.0,0.00011757,2]
[327073792,1715781033700,-150.0,0.00011762,2]
[327073793,1715781033712,-150.0,0.00011765,2]
[327073794,1715781033723,-150.0,0.00011768,2]
[327073795,1715781033734,-29129.24323913,0.00011768,2]
[327073797,1715781033745,-213.05,0.0001177,2]
[327073799,1715781033756,-213.05,0.0001177,2]
[327073801,1715781033767,-150.0,0.00011773,2]
[327073803,1715781033779,-150.0,0.00011774,2]
[327073806,1715781033791,-150.0,0.00011774,2]
[327073808,1715781033802,-150.0,0.00011774,2]
[327073809,1715781033813,-150.0,0.00011775,2]
[327073810,1715781033823,-155.10172838,0.00011778,2]
[327073811,1715781033834,-1204.97401448,0.00011778,2]
[327073812,1715781033845,-162.26320548,0.00011778,2]
[327073813,1715781033859,-268.13175477,0.00011778,2]
[327073814,1715781033870,-535.41902389,0.00011778,2]
[327073815,1715781033881,-1271.90080995,0.00011778,2]
[327073816,1715781033892,-230.09744495,0.00011778,2]
[327073817,1715781033902,-150.0,0.00011779,2]
[327073818,1715781033913,-17781.9431,0.0001178,2]
[327073819,1715781033925,-33287.411366,0.0001178,2]
[327073820,1715781034416,-359.16532702,0.0001178,2]
[327073821,1715781034428,-211353.42330698,0.0001178,2]
[327073822,1715781034438,-500.0,0.0001178,2]
[327073823,1715781034447,-500.0,0.0001178,2]
[327073824,1715781034457,-321.69024523,0.0001178,2]
[327073825,1715781034468,-451.94566684,0.0001178,2]
[327073826,1715781034477,-176.48744636,0.0001178,2]
[327073827,1715781034488,-500.0,0.0001178,2]
[327073828,1715781034497,-500.0,0.0001178,2]
[327073829,1715781034507,-500.0,0.0001178,2]
[327073830,1715781034517,-500.0,0.0001178,2]
[327073831,1715781034527,-336.71280473,0.0001178,2]
[327073832,1715781034536,-344.98750995,0.0001178,2]
[327073833,1715781034546,-500.0,0.0001178,2]
[327073834,1715781034556,-500.0,0.0001178,2]
[327073835,1715781034565,-500.0,0.0001178,2]
[327073836,1715781034574,-373.88,0.0001178,2]
[327073837,1715781034584,-500.0,0.0001178,2]
[327073838,1715781034593,-502.66,0.0001178,2]
[327073839,1715781034603,-500.0,0.0001178,2]
[327073840,1715781034612,-497.57,0.0001178,2]
[327073841,1715781034622,-500.0,0.0001178,2]
[327073842,1715781034631,-500.0,0.0001178,2]
[327073843,1715781034640,-500.0,0.0001178,2]
[327073844,1715781034650,-500.0,0.0001178,2]
[327073845,1715781034659,-500.0,0.0001178,2]
[327073846,1715781034668,-500.0,0.0001178,2]
[327073847,1715781034677,-500.0,0.0001178,2]
[327073848,1715781034687,-311.18445338,0.0001178,2]
[327073849,1715781034696,-237.16559782,0.0001178,2]
[327073850,1715781034705,-500.0,0.0001178,2]
[327073851,1715781034716,-500.0,0.0001178,2]
[327073852,1715781034725,-500.0,0.0001178,2]
[327073853,1715781034735,-500.0,0.0001178,2]
[327073854,1715781034745,-620.72,0.0001178,2]
[327073855,1715781034754,-500.0,0.0001178,2]
[327073856,1715781034763,-488.79,0.0001178,2]
[327073857,1715781034773,-500.0,0.0001178,2]
[327073858,1715781034782,-500.0,0.0001178,2]
[327073859,1715781034791,-561.48,0.0001178,2]
[327073860,1715781034801,-606.18,0.0001178,2]
[327073861,1715781034810,-500.0,0.0001178,2]
[327073862,1715781034819,-500.0,0.0001178,2]
[327073863,1715781034830,-421.5,0.0001178,2]
[327073864,1715781034839,-500.0,0.0001178,2]
[327073865,1715781034848,-503.59945844,0.0001178,2]
[327073866,1715781034861,-500.0,0.0001178,2]
[327073867,1715781034870,-500.0,0.0001178,2]
[327073868,1715781034880,-500.0,0.0001178,2]
[327073869,1715781034889,-1148.88,0.0001178,2]
[327073870,1715781034899,-1148.88,0.0001178,2]
[327073871,1715781034908,-500.0,0.0001178,2]
[327073872,1715781034918,-500.0,0.0001178,2]
[327073873,1715781034928,-500.0,0.0001178,2]
[327073874,1715781034938,-380.75,0.0001178,2]
[327073875,1715781034948,-500.0,0.0001178,2]
[327073876,1715781034959,-150.0,0.00011784,2]
[327073877,1715781034968,-150.0,0.00011785,2]
[327073878,1715781034978,-150.0,0.00011787,2]
[327073879,1715781034987,-188.63686277,0.0001179,2]
[327073880,1715781034997,-150.0,0.00011792,2]
[327073881,1715781035006,-150.0,0.00011794,2]
[327073882,1715781035017,-200.0,0.00011794,2]
[327073883,1715781035027,-150.0,0.00011796,2]
[327073884,1715781035036,-150.0,0.00011797,2]
[327073885,1715781035046,-150.0,0.00011797,2]
[327073886,1715781035056,-2181.7112,0.00011798,2]
[327073887,1715781035066,-172.4746835,0.00011799,2]
[327073888,1715781035075,-200.0,0.000118,2]
[327073889,1715781035085,-1000.0,0.000118,2]
[327073890,1715781035095,-500.0,0.000118,2]
[327073891,1715781035108,-272.295,0.000118,2]
[327073892,1715781035118,-5913.0,0.000118,2]
[327073893,1715781035127,-3694.16282266,0.000118,2]
[327073894,1715781035140,-295.44814184,0.000118,2]
[327073895,1715781035156,-1761.3890355,0.000118,2]
[327073896,1715781035166,-4188.6109645,0.000118,2]
[327073897,1715781035182,-1457.69298297,0.000118,2]
[327073898,1715781035195,-6317.28605253,0.000118,2]
[327073899,1715781035205,-1464.0,0.000118,2]
[327073900,1715781035214,-300.0,0.000118,4]
[327073901,1715781035225,-1000.0,0.000118,2]
[327073902,1715781035238,-150.0,0.00011805,2]
[327073903,1715781035248,-150.0,0.00011806,2]
[327073904,1715781035257,-301.95100914,0.00011807,2]
[327073905,1715781035267,-150.0,0.00011807,2]
[327073906,1715781035277,-150.0,0.00011808,2]
[327073907,1715781035287,-150.0,0.0001181,2]
[327073908,1715781035297,-150.0,0.00011813,2]
[327073909,1715781035308,-150.0,0.00011815,2]
[327073910,1715781035318,-150.0,0.0001182,2]
[327073911,1715781035328,-150.0,0.00011822,2]
[327073912,1715781035338,-150.0,0.00011825,2]
[327073913,1715781035348,-150.0,0.00011825,2]
[327073914,1715781035360,-150.0,0.00011826,2]
[327073915,1715781035370,-150.0,0.00011826,2]
[327073916,1715781035380,-2419.28712019,0.00011827,2]
[327073917,1715781035389,-150.0,0.00011829,2]
[327073918,1715781035399,-150.0,0.00011835,2]
[327073919,1715781035408,-150.0,0.00011837,2]
[327073920,1715781035418,-150.0,0.00011838,2]
[327073921,1715781035428,-150.0,0.0001184,2]
[327073922,1715781035438,-150.0,0.00011841,2]
[327073923,1715781035447,-150.0,0.00011851,2]
[327073924,1715781035456,-150.0,0.00011853,2]
[327073925,1715781035466,-150.0,0.00011859,2]
[327073926,1715781035477,-150.0,0.00011867,2]
[327073927,1715781035486,-150.0,0.00011869,2]
[327073928,1715781035495,-150.0,0.00011871,2]
[327073929,1715781035505,-150.0,0.00011874,2]
[327073930,1715781035514,-150.0,0.00011875,2]
[327073931,1715781035524,-150.0,0.00011877,2]
[327073932,1715781035533,-500.0,0.00011877,2]
[327073933,1715781035543,-500.0,0.00011877,2]
[327073934,1715781035552,-535.98,0.00011877,2]
[327073935,1715781035562,-500.0,0.00011878,2]
[327073936,1715781035571,-500.0,0.00011879,2]
[327073937,1715781035581,-500.0,0.00011879,2]
[327073938,1715781035591,-500.0,0.00011879,2]
[327073939,1715781035601,-500.0,0.00011879,2]
[327073940,1715781035613,-500.0,0.00011879,2]
[327073941,1715781035623,-500.0,0.00011879,2]
[327073942,1715781035632,-2419.28712017,0.00011879,2]
[327073943,1715781035643,-7511.44304258,0.00011885,2]
[327073944,1715781035652,-150.0,0.00011885,2]
[327073945,1715781035662,-150.0,0.00011886,2]
[327073946,1715781035672,-150.0,0.00011887,2]
[327073947,1715781035682,-150.0,0.00011888,2]
[327073948,1715781035691,-198.88015173,0.00011888,2]
[327073949,1715781035701,-213.05,0.00011888,2]
[327073950,1715781035712,-213.05,0.00011888,2]
[327073951,1715781035721,-616.0,0.00011888,2]
[327073952,1715781035731,-150.0,0.0001189,2]
[327073953,1715781035740,-150.0,0.00011893,2]
[327073954,1715781035750,-150.0,0.00011895,2]
[327073955,1715781035760,-584.13884313,0.00011896,2]
[327073956,1715781035770,-500.0,0.00011896,2]
[327073957,1715781035780,-500.0,0.00011896,2]
[327073958,1715781035790,-500.0,0.00011896,2]
[327073959,1715781035800,-500.0,0.00011896,2]
[327073960,1715781035810,-500.0,0.00011896,2]
[327073961,1715781035820,-500.0,0.00011897,2]
[327073962,1715781035830,-500.0,0.00011897,2]
[327073963,1715781035839,-500.0,0.00011897,2]
[327073964,1715781035849,-500.0,0.00011897,2]
[327073965,1715781035864,-500.0,0.00011897,2]
[327073966,1715781035873,-600.84,0.00011897,2]
[327073967,1715781035884,-500.0,0.00011897,2]
[327073968,1715781035893,-1148.88,0.00011897,2]
[327073969,1715781035903,-74514.56776916,0.00011898,2]
[327073970,1715781035912,-74514.56776913,0.00011898,2]
[327073971,1715781035922,-74514.56776913,0.00011898,2]
[327073972,1715781035931,-74514.56776913,0.00011898,2]
[327073973,1715781035940,-74514.56776913,0.00011898,2]
[327073974,1715781035950,-74514.56776913,0.00011898,2]
[327073975,1715781035960,-188.63686277,0.00011899,2]
[327073976,1715781035971,-761.99250099,0.000119,2]
[327073977,1715781035982,-150.0,0.000119,2]
[327073978,1715781035992,-300.0,0.000119,4]
[327073979,1715781036002,-714.08436502,0.000119,2]
[327073980,1715781036013,-179.03484571,0.000119,2]
[327073981,1715781036024,-2906.28212374,0.000119,2]
[327073982,1715781036037,-4667.84440526,0.000119,2]
[327073983,1715781036046,-162.7689596,0.000119,2]
[327073984,1715781036056,-223.0,0.000119,2]
[327073985,1715781036066,-150.0,0.00011901,2]
[327073986,1715781036076,-150.0,0.00011902,2]
[327073987,1715781036086,-150.0,0.00011905,2]
[327073988,1715781036095,-150.0,0.00011908,2]
[327073989,1715781036110,-150.0,0.00011909,2]
[327073990,1715781036119,-150.0,0.0001191,2]
[327073991,1715781036129,-213.05,0.0001191,2]
[327073992,1715781036140,-150.0,0.00011916,2]
[327073993,1715781036152,-213.05,0.00011917,2]
[327073994,1715781036162,-213.05,0.00011917,2]
[327073995,1715781036172,-213.05,0.00011917,2]
[327073996,1715781036183,-150.0,0.00011917,2]
[327073997,1715781036193,-150.0,0.00011918,2]
[327073998,1715781036203,-150.0,0.00011919,2]
[327073999,1715781036213,-150.0,0.00011919,2]
[327074000,1715781036226,-500.0,0.00011919,2]
[327074001,1715781036235,-500.0,0.00011919,2]
[327074002,1715781036245,-500.0,0.00011919,2]
[327074003,1715781036255,-500.0,0.00011919,2]
[327074004,1715781036265,-1148.88,0.00011919,2]
[327074005,1715781036274,-1882.77376,0.0001192,2]
[327074006,1715781036284,-1445.3439846,0.0001192,2]
[327074007,1715781036293,-31096.88889054,0.0001192,2]
[327074008,1715781036306,-415.09721781,0.0001192,2]
[327074009,1715781036318,-15906.93349015,0.0001192,2]
[327074010,1715781036327,-332.8743608,0.0001192,2]
[327074011,1715781036337,-4654.1852705,0.0001192,2]
[327074012,1715781036347,-150.0,0.00011922,2]
[327074013,1715781036359,-515.6795376,0.00011925,2]
[327074014,1715781036369,-362.94669149,0.00011925,2]
[327074015,1715781036379,-1340.30183738,0.00011926,2]
[327074016,1715781036389,-1750.22182803,0.00011926,2]
[327074017,1715781036399,-150.0,0.00011926,2]
[327074018,1715781036408,-500.0,0.00011926,2]
[327074019,1715781036418,-500.0,0.00011926,2]
[327074020,1715781036428,-500.0,0.00011926,2]
[327074021,1715781036438,-500.0,0.00011926,2]
[327074022,1715781036448,-500.0,0.00011926,2]
[327074023,1715781036457,-500.0,0.00011926,2]
[327074024,1715781036467,-500.0,0.00011926,2]
[327074025,1715781036476,-500.0,0.00011926,2]
[327074026,1715781036486,-1148.88,0.00011926,2]
[327074027,1715781036496,-1148.88,0.00011926,2]
[327074028,1715781036506,-33082.78482064,0.00011927,2]
[327074029,1715781036517,-903.79035455,0.00011927,2]
[327074030,1715781036529,-4812.32835567,0.00011927,2]
[327074031,1715781036540,-133280.31441172,0.00011927,2]
[327074032,1715781036552,-803.60000004,0.00011927,2]
[327074037,1715781037735,-492.46572184,0.0001178,2]
[327074038,1715781037745,-2047.39857034,0.00011927,2]
[327074039,1715781037756,-54905.01392559,0.00011927,2]
[327074040,1715781037979,-325.419,0.00011927,2]
[327074041,1715781037992,-1648.95132,0.00011927,2]
[327074042,1715781038004,-2379.84,0.00011927,2]
[327074043,1715781038016,-80494.91560085,0.00011927,2]
[327074044,1715781038274,-782.2062,0.00011241,2]
[327074046,1715781038284,-218437.71895293,0.00011927,2]
[327074048,1715781038294,-4264.99991212,0.00011927,2]
[327074049,1715781038304,-432.99844045,0.00011927,2]
[327074050,1715781038314,-150.0,0.00011927,2]
[327074051,1715781038324,-3000.0,0.00011927,2]
[327074052,1715781038334,-150.0,0.00011928,2]
[327074053,1715781038344,-150.0,0.00011928,2]
[327074054,1715781038360,-150.0,0.00011931,2]
[327074055,1715781038369,-2419.28712017,0.00011931,2]
[327074056,1715781038379,-150.0,0.00011942,2]
[327074057,1715781038388,-150.0,0.00011943,2]
[327074058,1715781038398,-150.0,0.00011949,2]
[327074059,1715781038407,-150.0,0.00011953,2]
[327074060,1715781038417,-150.0,0.00011953,2]
[327074061,1715781038426,-150.0,0.00011955,2]
[327074062,1715781038436,-150.0,0.0001196,2]
[327074063,1715781038445,-150.0,0.00011964,2]
[327074064,1715781038455,-150.0,0.00011966,2]
[327074065,1715781038465,-74514.56776913,0.00011967,2]
[327074066,1715781038475,-172.263909,0.00011967,2]
[327074067,1715781038485,-170.337444,0.00011967,2]
[327074068,1715781038495,-170.337444,0.00011967,2]
[327074069,1715781038504,-194.262083,0.00011967,2]
[327074070,1715781038513,-184.570634,0.00011967,2]
[327074071,1715781038523,-150.0,0.00011972,2]
[327074072,1715781038534,-150.0,0.00011973,2]
[327074073,1715781038544,-150.0,0.00011977,2]
[327074074,1715781038553,-150.0,0.00011978,2]
[327074075,1715781038563,-150.0,0.0001198,2]
[327074076,1715781038572,-150.0,0.00011981,2]
[327074077,1715781038582,-213.05,0.00011982,2]
[327074078,1715781038592,-150.0,0.00011983,2]
[327074079,1715781038604,-2419.28712017,0.00011983,2]
[327074080,1715781038614,-150.0,0.00011985,2]
[327074081,1715781038623,-150.0,0.00011986,2]
[327074082,1715781038633,-213.05,0.0001199,2]
[327074083,1715781038642,-237.03007984,0.0001199,2]
[327074084,1715781038651,-500.0,0.00011991,2]